{"text_format":"1","workbook":"xlsx","n_sheets":1,"sheets":["CATALOGO"],"not_rendered":{"charts":0,"images":1,"macros":1,"external_links":0,"defined_names":2,"comments":0,"pivot_tables":0},"unopened":[],"bounds":{"document_bytes":16777216,"sheet_cells":100000,"rows_first":2000,"rows_last":500,"rows_between":2000,"halvings":0,"cell_chars":16384,"cell_head_chars":4096},"cells_cut":0,"cells_raw":0,"read":"whole","date_system":"1900"}

{"sheet":"CATALOGO","index":0,"n_rows":357,"n_cols":9,"rows_kept":357,"cut":false,"hidden":false,"merged":[[0,3,0,8],[1,2,2,2],[1,3,1,6],[1,7,1,8],[2,3,3,6],[2,7,2,8],[3,7,3,8],[7,0,8,0],[7,1,8,1],[7,2,8,2],[7,3,8,3],[7,4,8,4],[7,5,8,5],[4,3,4,6],[4,7,4,8],[5,0,5,2],[5,3,5,4],[5,5,5,8],[6,0,6,8],[13,5,13,6],[14,5,14,6],[15,5,15,6],[16,5,16,6],[17,5,17,6],[18,5,18,6],[7,6,8,6],[7,7,8,7],[7,8,8,8],[10,4,10,8],[11,5,11,8],[12,5,12,6],[45,0,46,3],[45,4,46,8],[27,5,27,6],[28,5,28,6],[29,5,29,6],[30,5,30,6],[33,5,33,8],[34,5,34,6],[19,5,19,6],[20,5,20,6],[21,5,21,6],[24,5,24,8],[25,5,25,6],[26,5,26,6],[52,5,52,8],[53,5,53,6],[54,5,54,6],[55,5,55,6],[57,4,57,7],[58,5,58,7],[35,5,35,6],[36,5,36,6],[37,5,37,6],[38,5,38,6],[39,5,39,6],[107,3,107,6],[109,0,109,1],[111,3,111,6],[113,0,113,1],[121,0,122,3],[121,4,122,8],[59,5,59,7],[61,3,61,8],[96,0,97,3],[96,4,97,8],[98,0,98,1],[99,0,99,1],[156,0,157,3],[156,4,157,8],[166,3,166,6],[168,0,168,1],[174,3,174,6],[182,0,183,3],[182,4,183,8],[131,3,131,6],[133,0,133,1],[137,0,138,3],[137,4,138,8],[145,3,145,6],[147,0,147,1],[201,0,201,1],[202,0,202,1],[204,3,204,6],[210,0,211,3],[210,4,211,8],[212,0,212,1],[184,0,184,1],[189,3,189,6],[191,0,191,1],[195,3,195,6],[197,0,197,1],[199,3,199,6],[249,3,249,6],[251,0,251,1],[257,3,257,6],[268,0,269,3],[268,4,269,8],[270,0,270,1],[224,3,224,6],[240,0,241,3],[240,4,241,8],[242,0,242,1],[245,3,245,6],[247,0,247,1],[284,0,284,1],[291,0,292,3],[291,4,292,8],[294,3,294,6],[296,0,296,1],[298,3,298,6],[271,0,271,1],[273,3,273,6],[275,0,275,1],[278,3,278,6],[280,0,280,1],[282,3,282,6],[319,3,319,6],[322,0,322,8],[323,0,323,8],[324,0,324,8],[325,0,325,8],[326,0,326,8],[300,0,300,1],[301,0,301,1],[303,3,303,6],[305,0,305,1],[315,0,316,3],[315,4,316,8],[333,0,333,8],[356,0,357,3],[356,4,357,8],[327,0,327,8],[328,0,328,8],[329,0,329,8],[330,0,330,8],[331,0,331,8],[332,0,332,8]]}
[null,null,null,"EMPRESA: "]
[null,null,null,"Licitación número interno: UMSNH/LPN-01/CULTURA-2017/2017\nLicitación número CompraNet: LO-916066971-E7-2017",null,null,null,"FECHA:"]
[null,null,null,"DESCRIPCIÓN DE LA OBRA: PLAZA NICOLAITA DEL ARTE Y LA CULTURA."]
[null,null,null,null,null,null,null,"HOJA:"]
[null,null,"MORELIA, MICHOACÁN.  ","UBICACIÓN DE LA OBRA:  Av. Francisco J. Múgica s/n, Ciudad Universitaria, Morelia, Michoacán, C.P. 58030."]
["MONTO TOTAL DE LA PROPOSICIÓN SIN I.V.A.:",null,null,{"$f":"I58","v":0},null,"(MONTO TOTAL DE LA PROPOSICIÓN SIN I.V.A. Y CON LETRA)"]
["CATÁLOGO DE CONCEPTOS"]
["No.","Clave","DESCRIPCIÓN DEL CONCEPTO","Unidad","Cantidad","Precio unitario con letra","Precio Unitario","Importe en ($)","% de incidencia"]
[]
[]
[null,null,null,null,"PLAZA NICOLAITA DEL ARTE Y LA CULTURA."]
[null,null,null,null,{"$f":"A99","v":"FRENTE 01"},{"$f":"C99","v":"OBRA EXTERIOR"}]
[null,null,null,null,"PARTIDA","RESUMEN",null,"% de incidencia","SUBTOTAL"]
[null,null,null,null,{"$f":"A100","v":"PAR0001"},{"$f":"C100","v":"DEMOLICIONES Y DESMONTAJES"},null,"%",0]
[null,null,null,null,{"$f":"A110","v":"PAR0002"},{"$f":"C110","v":"PRELIMINARES"},null,"%",0]
[null,null,null,null,{"$f":"A114","v":"PAR0003"},{"$f":"C114","v":"CIMENTACIÓN"},null,"%",0]
[null,null,null,null,{"$f":"A134","v":"PAR0004"},{"$f":"C134","v":"ALBAÑILERÍA"},null,"%",0]
[null,null,null,null,{"$f":"A148","v":"PAR0005"},{"$f":"C148","v":"INSTALACIÓN ELÉCTRICA E ILUMINACIÓN"},null,"%",0]
[null,null,null,null,{"$f":"A169","v":"PAR0006"},{"$f":"C169","v":"INSTALACIÓN DE VOZ Y DATOS"},null,"%",0]
[null,null,null,null,{"$f":"A185","v":"PAR0007"},{"$f":"C185","v":"MOBILIARIO URBANO"},null,"%",0]
[null,null,null,null,{"$f":"A192","v":"PAR0008"},{"$f":"C192","v":"JARDINERÍA"},null,"%",0]
[null,null,null,null,{"$f":"A198","v":"PAR0009"},{"$f":"C198","v":"LIMPIEZAS"},null,"%",0]
[null,null,null,null,null,null,null,"SUBTOTAL:",{"$f":"SUM(I14:I22)","v":0}]
[]
[null,null,null,null,{"$f":"A202","v":"FRENTE 02"},{"$f":"C202","v":"ASTA BANDERA"}]
[null,null,null,null,"PARTIDA","RESUMEN",null,"% de incidencia","SUBTOTAL"]
[null,null,null,null,{"$f":"A203","v":"PAR0010"},{"$f":"C203","v":"PRELIMINARES"},null,"%",0]
[null,null,null,null,{"$f":"A213","v":"PAR0011"},{"$f":"C213","v":"CIMENTACIÓN"},null,"%",0]
[null,null,null,null,{"$f":"A243","v":"PAR0012"},{"$f":"C243","v":"ESTRUCTURA METÁLICA"},null,"%",0]
[null,null,null,null,{"$f":"A248","v":"PAR0013"},{"$f":"C248","v":"ACABADOS Y RECUBRIMIENTOS"},null,"%",0]
[null,null,null,null,{"$f":"A252","v":"PAR0014"},{"$f":"C252","v":"INSTALACIÓN ELÉCTRICA E ILUMINACIÓN"},null,"%",0]
[null,null,null,null,null,null,null,"SUBTOTAL:",{"$f":"SUM(I27:I31)","v":0}]
[]
[null,null,null,null,{"$f":"A271","v":"FRENTE 03"},{"$f":"C271","v":"CUBIERTA"}]
[null,null,null,null,"PARTIDA","RESUMEN",null,"% de incidencia","SUBTOTAL"]
[null,null,null,null,{"$f":"A272","v":"PAR0015"},{"$f":"C272","v":"PRELIMINARES"},null,"%",0]
[null,null,null,null,{"$f":"A276","v":"PAR0016"},{"$f":"C276","v":"ESTRUCTURA METÁLICA"},null,"%",0]
[null,null,null,null,{"$f":"A281","v":"PAR0017"},{"$f":"C281","v":"ACABADOS Y RECUBRIMIENTOS"},null,"%",0]
[null,null,null,null,{"$f":"A285","v":"PAR0018"},{"$f":"C285","v":"INSTALACIÓN ELÉCTRICA E ILUMINACIÓN"},null,"%",0]
[null,null,null,null,{"$f":"A297","v":"PAR0019"},{"$f":"C297","v":"ALUMINIO, VIDRIOS, DOMOS Y POLICARBONATO"},null,"%",0]
[null,null,null,null,null,null,null,"SUBTOTAL:",{"$f":"SUM(I36:I40)","v":0}]
[]
[]
[]
[]
["Nombre de la empresa",null,null,null,"Representante legal"]
[]
[]
[]
[]
[]
[]
[null,null,null,null,{"$f":"A301","v":"FRENTE 04"},{"$f":"C301","v":"ESCULTURA CENTENARIO NICOLAITA"}]
[null,null,null,null,"PARTIDA","RESUMEN",null,"% de incidencia","SUBTOTAL"]
[null,null,null,null,{"$f":"A302","v":"PAR0020"},{"$f":"C302","v":"PRELIMINARES"},null,"%",0]
[null,null,null,null,{"$f":"A306","v":"PAR0021"},{"$f":"C306","v":"CIMENTACIÓN"},null,"%",0]
[null,null,null,null,null,null,null,"SUBTOTAL:",0]
[null,null,null,null,"SUBTOTAL (FRENTE 01+FRENTE 02+FRENTE 03+FRENTE 04):",null,null,null,{"$f":"I23+I32+I41+I57","v":0}]
[null,null,null,null,null,"I.V.A.:",null,null,{"$f":"ROUND(I58*0.16,2)","v":0}]
[null,null,null,null,null,"TOTAL:",null,null,{"$f":"SUM(I58:I59)","v":0}]
[]
[null,null,null,"(MONTO TOTAL DE LA PROPOSICIÓN CON LETRA)"]
[]
[]
[]
[]
[]
[]
[]
[]
[]
[]
[]
[]
[]
[]
[]
[]
[]
[]
[]
[]
[]
[]
[]
[]
[]
[]
[]
[]
[]
[]
[]
[]
[]
[]
["Nombre de la empresa",null,null,null,"Representante legal"]
[]
["FRENTE 01",null,"OBRA EXTERIOR"]
["PAR0001",null,"DEMOLICIONES Y DESMONTAJES"]
[1,"E04-114C","LIBERACIÓN de ADOQUÍN o ADOCRETO de concreto de 6 a 10 cm de espesor, incluye recuperación del material, acarreo y retiro del mismo a cualquier distancia.","m2",441.88,null,null,{"$f":"ROUND(E101*G101,2)","v":0},"%"]
[2,"E04-DEMCON01","DEMOLICIÓN a cualquier altura y nivel de CONCRETO SIMPLE, incluye carga, acarreo y retiro en camión del material producto de la demolición dentro y fuera de la obra a cualquier distancia. (Medir compacto)","m3",4.24,null,null,0,"%"]
[3,"E04-DEMCONC02","DEMOLICIÓN a cualquier altura y nivel de CONCRETO ARMADO con malla o acero de refuerzo, incluye carga y acarreo en camión del material producto de la demolición dentro y fuera de la obra a cualquier distancia. (Medir compacto)","m3",17.829999999999998,null,null,0,"%"]
[4,"E04-1091","LIBERACIÓN de PASTO SIN RECUPERACIÓN, incluye acarreo y retiro a cualquier distancia indicada por la supervisión.","m2",1114.1099999999999,null,null,0,"%"]
[5,"E04-DEMMOMUR01","DEMOLICIÓN de MURO de TABIQUE de barro recocido, BLOCK o TABICÓN de concreto a cualquier altura y nivel, incluye aplanados de 1 a 3 cm de espesor promedio, recubrimientos, cadenas y castillos de concreto armado y carga, acarreo y retiro en camión del material producto de la demolición dentro y fuera de la obra a cualquier distancia. (Medido compacto)",null,3.98,null,null,0,"%"]
[6,"E04-DESMHERR01","DESMONTAJE de VENTANERÍA, PUERTAS, MAMPARAS Y CANCELERÍA de HERRERÍA CON RECUPERACIÓN a cualquier nivel y altura, incluye carga, acarreo y retiro dentro y fuera de la obra a cualquier distancia.","m2",3.78,null,null,0,"%"]
[7,"E04-DESMBAS01","LIBERACIÓN de CONTENEDOR METÁLICO de BASURA de 1.20 a 1.50 m de alto por 0.60 a 0.80 m de dímetro CON RECUPERACIÓN a cualquier nivel, incluye carga, acarreo y retiro dentro y fuera de la obra a cualquier distancia.","pza",3,null,null,0,"%"]
[null,null,null,"SUBTOTAL DE DEMOLICIONES Y DESMONTAJES :",null,null,null,{"$f":"SUM(H101:H107)","v":0}]
[]
["PAR0002","PAR0002","PRELIMINARES"]
[8,"E05-004","TRAZO y NIVELACIÓN de OBRAS EXTERIORES, considerando: plazas, andadores, arriates y jardinería incluye equipo de topografía y materiales para señalamiento.","m2",2910.71,{"$f":"PESOSMN(G111)","v":"( PESO 00/100 M.N.)"},null,0,"%"]
[null,null,null,"SUBTOTAL DE PRELIMINARES:",null,null,null,{"$f":"SUM(H111)","v":0}]
[]
["PAR0003","PAR0003","CIMENTACIÓN"]
[9,"E06-005","EXCAVACIÓN a cielo abierto en  terreno tipo \"B\" zona \"A\" empleando MEDIOS MECÁNICOS, hasta profundidades de 3.00 m, incluye afine de taludes. (Medido compacto)","m3",551.88,null,null,0,"%"]
[10,"E06-002","EXCAVACIÓN A MANO en terreno tipo \"B\" en cepas de 0.00 a 2.00 m de profundidad,  incluye afine de taludes y traspaleo. (Medido compacto)","m3",10,null,null,0,"%"]
[11,"E05-0121","ACARREO de material producto de EXCAVACIÓN o ESCOMBRO fuera de la obra en CAMIÓN, incluye carga con MÁQUINA y descarga en banco de desperdicio a cualquier distancia. (Medido compacto)","m3",574.25,null,null,0,"%"]
[12,"E05-0260","COMPACTACIÓN de TERRENO NATURAL al 90% de su PVSM, utilizando compactador de placa vibratoria (bailarina).","m2",1122.28,null,null,0,"%"]
[13,"E05-041","PLANTILLA de concreto simple f'c= 100 kg/cm2 de 6 cm de espesor, incluye cimbra común en fronteras y fabricación, vaciado, acarreo y picado de concreto.","m2",785.93,null,null,0,"%"]
[14,"E02-001","Suministro y colocación de ACERO de REFUERZO del No. 2 (1/4\") de diámetro fy= 2,530 kg/cm2 en CIMENTACIÓN, incluye  habilitado, armado, ganchos, dobleces,  traslapes,  silletas, desperdicio, alambre recocido, fletes y acarreo.","kg",63.11,null,null,0,"%"]
[15,"E02-003","Suministro y colocación de  ACERO de REFUERZO del No. 3 (3/8\") de diámetro fy= 4,200 kg/cm2 en CIMENTACIÓN, incluye habilitado, armado, ganchos, dobleces, traslapes, silletas, desperdicio, alambre recocido, fletes y acarreo.","kg",3299.86,null,null,0,"%"]
["Nombre de la empresa",null,null,null,"Representante legal"]
[]
[16,"E11-3011","ENRASE con tabicón de concreto 8x12x26 cm de 12 cm de  espesor, asentado con mortero cemento-arena 1:4.","m2",228.25,null,null,0,"%"]
[17,"E11-3021","ENRASE con tabicón de concreto 8x12x26 cm de 26 cm de espesor, asentado con mortero cemento-arena 1:4.","m2",13.29,null,null,0,"%"]
[18,"E01-CIMZAP01","CIMBRA y descimbra en ZAPATAS y LOSAS de CIMENTACIÓN, acabado común con duela de madera de pino de 2a. y obra  falsa de madera de pino de 3a., medida por superficie de contacto, incluye materiales, mano de obra, habilitado, nivelado, desmoldante (no aceite quemado), desperdicios y cambio a la siguiente posición.","m2",233.61,null,null,0,"%"]
[19,"E03-CONCIM01","CONCRETO HECHO EN OBRA f'c= 200 kg/cm2 RESISTENCIA NORMAL, tamaño máximo del agregado 19 mm (3/4\"), revenimiento de 12 a 14 cm en CIMENTACIÓN a cualquier altura, incluye materiales, mano de obra, elaboración, acarreo, vaciado y vibrado de concreto, membrana de curado emulsionada, emulsión acuosa de copolimeros como adhesivo en juntas frías entre concreto viejo y nuevo, equipo, herramienta necesaria y desperdicio.","m3",65.11,null,null,0,"%"]
[20,"E03-041","CONCRETO HECHO EN OBRA f'c= 250 kg/cm2 RESISTENCIA NORMAL, tamaño máximo del agregado 19 mm (3/4\"), revenimiento de 12 a 14 cm en CIMENTACIÓN a cualquier altura, incluye materiales, mano de obra, elaboración, acarreo, vaciado y vibrado de concreto, membrana de curado emulsionada, emulsión acuosa de copolimeros como adhesivo en juntas frías entre concreto viejo y nuevo, equipo, herramienta necesaria y desperdicio.","m3",30.69,null,null,0,"%"]
[21,"E10-0833","CADENA o CASTILLO de concreto f'c= 200 kg/cm2 de 15 x 30 cm armado con 4 varillas del No. 3 (3/8\") y estribos del No. 2 (1/4\")  a cada 15 cm, incluye cimbra común, ganchos, traslapes, anclajes y cruces de varilla y fabricación, vaciado, acarreo y picado de concreto.","m",844.68,null,null,0,"%"]
[22,"E05-0212","RELLENO y ACOMODO con pisón mecánico (bailarina) en capas de 20 cm utilizando  material de banco (FILTRO), incluye agua,  traspaleo, extendido y acarreo a cualquier distancia. (Medir compacto)","m3",439.49,null,null,0,"%"]
[23,"E05-BASEME01","RELLENO y COMPACTACIÓN con pisón mecánico (bailarina) en capas de  20 cm  utilizando  BASE MEZCLADA en proporción 80:20 FILTRO-TEPETATE, incluye traspaleo, extendido y acarreo a cualquier distancia. (Medido compacto).","m3",276.95999999999998,null,null,0,"%"]
[null,null,null,"SUBTOTAL DE CIMENTACIÓN:",null,null,null,{"$f":"SUM(H115:H131)","v":0}]
[]
["PAR0004","PAR0003","ALBAÑILERÍA"]
[24,"E12-0553","Construcción de GUARNICIÓN de concreto simple f'c=200 kg/cm2 , sección TRAPEZOIDAL 20 x 30 x 40 cm, incluye cimbrado aparente, juntas constructivas a cada 3.00 m, elaboración, acarreo, vibrado y curado del concreto, acabado pulido con cemento gris, juntas y aristas con volteador,  herramienta, equipo y mano de obra.","m",52.06,null,null,{"$f":"ROUND(E135*G135,2)","v":0},"%"]
[25,"E12-055","PISO de CONCRETO armado  f'c= 150 kg/cm2  de 10 cm  de espesor, armado con malla electrosoldada 66-1010, acabado PULIDO rayado y/o escobillado con cemento gris y juntas frías a hueso acabadas con volteador, incluye cimbra común en fronteras, nivelación, compactación y fabricación, acarreo, vaciado y extendido de concreto.","m2",340.09,null,null,0,"%"]
[26,"E12-PISOLAV01","PISO de CONCRETO armado  f'c= 150 kg/cm2  de 10 cm  de espesor, armado con malla electrosoldada 66-1010, acabado LAVADO, incluye cimbra común en fronteras, nivelación, compactación y fabricación, acarreo, vaciado y extendido de concreto y lavado a detalle con hidrolavadora y cepillo hasta la exposición del agregado grueso en el sustrato.","m2",841.32,null,null,0,"%"]
["Nombre de la empresa",null,null,null,"Representante legal"]
[]
[27,"E10-0825","CONSTRUCCIÓN de NARIZ de concreto f'c= 150 kg/cm2, incluye solo cimbra aparente, chaflanes y acero 0.8 kg/ml para remate.","m",767.89,null,null,{"$f":"ROUND(E140*G140,2)","v":0},"%"]
[28,"E26-0021B","Suministro, tendido, acomodo y nivelación de GRAVA TRITURADA de 3/4\", incluye acarreo a cualquier distancia.","m3",10.16,null,null,0,"%"]
[29,"E15-BOLARCO02","CONSTRUCCIÓN de BOLARDO decorativo de 0.45 m de diámetro por 0.45 m de altura elaborado a base de CONCRETO f'c=200 kg/cm2 armado con 8 varilla del No. 3 (3/8\") y 5 estribos con varilla del 3 (3/8\") desde cimentación, incluye ganchos y traslapes del acero de refuerzo, alambre recocido, excavación a mano de forma circular en terreno tipo \"B\" para empotramiento de cimentación , plantilla de concreto f'c=100 kg/cm2 de 6 cm de espesor, cimbra común en cimentación, MOLDE METÁLICO prefabricado de FORMA CILÍNDRICA de 0.45 m de diámetro por 0.45 m de altura para construcción de BOLARDO elaborado a base de lámina metálica negra calibre 14, desmoldante, vibrado, elaboración, acarreo y colado de concreto, membrana de curado, chaflán de 0.02 m de catetos en perímetro de corona superior del bolardo y martelinado en SECO como acabado final sobre toda la superficie.","pza",12,null,null,0,"%"]
[30,"E12-400","MARTELINADO de PISO de concreto con martelina a cualquier nivel, incluye limpieza del área.","m2",29.93,null,null,0,"%"]
[31,"E13-020","REPELLADO a plomo y regla metálica con mortero cemento-arena  1:3, de 2 cm de espesor promedio a cualquier nivel y altura, incluye boquillas y elevación de materiales.","m2",39.9,null,null,0,"%"]
[32,"E13-087","Acabado PULIDO con pasta de cemento en muros de cisterna, incluye impermeabilizante integral 0.04 kg/kg de cemento gris.","m2",39.9,null,null,0,"%"]
[null,null,null,"SUBTOTAL DE ALBAÑILERÍA:",null,null,null,{"$f":"SUM(H135:H145)","v":0}]
[]
["PAR0005","PAR0003","INSTALACIÓN ELÉCTRICA E ILUMINACIÓN"]
[33,"E10-BASE01","Suministro y colocación de BASE PIRAMIDAL PREFABRICADA de concreto armado f'c=200 kg/cm2 de 40x80x80 cm para luminaria de poste, incluye anclas roscadas de 3/4\", acarreos, nivelación y plomeo.","pza",6,null,null,{"$f":"ROUND(E149*G149,2)","v":0},"%"]
[34,"E10-2006","Suministro y colocación de REGISTRO ELÉCTRICO de concreto prefabricado de 0.35 x 0.35 m y 0.50 m de profundidad (ALUMBRADO), incluye nivelación y plomeo y cama de grava volcánica para drenaje de aguas.","pza",6,null,null,0,"%"]
[35,"E05-TUBE02","Suministro y tendido de TUBO de RESINA de POLIETILENO de ALTA DENSIDAD (PEAD) de 1 1/2\" (38 mm) de diámetro LISO para instalaciones eléctricas RD-17, incluye cortes, desperdicio y acarreo del material a cualquier distancia.","m",208.9,null,null,0,"%"]
[36,"E05-251","Suministro y colocación de CAMA de ARENA NEGRA VOLCÁNICA de 5 a 10 cm de espesor promedio, incluye acomodo, extendido y acarreos a cualquier distancia.","m3",1.57,null,null,0,"%"]
[37,"E18-2241","Suministro y tendido a cualquier nivel y altura de CABLE de COBRE DESNUDO calibre 12, incluye cocas y desperdicios.","m",418.9,null,null,0,"%"]
[38,"E18-0315","Suministro y tendido a cualquier nivel y altura de CABLE DE COBRE SUAVE THW-LS calibre 12 temperatura máxima de operación 90°C y tensión máxima de 600 volts, incluye cocas y desperdicios.","m",657.8,null,null,0,"%"]
[39,"E18-LUMI02","Suministro y colocación de LUMINARIA POSTE DE MEDIA ALTURA ORNAMENTAL LED de 2.70 m de altura, 0.28 m de diámetro, modelo BOLLARD OU9045FBNA de 50 watts, marca CONSTRULITA, 120-277 Volts-60 Hz, elaborada en aluminio extruido, reflector de aluminio pintado y difusor de termoplástico, incluye lámpara 50 watts, driver electrónico, conexión.","pza",6,null,null,0,"%"]
[40,"E18-230","Suministro y tendido a cualquier nivel y altura de TUBO CONDUIT GALVANIZADO PARED GRUESA de 13 mm (1/2\"), incluye guía de alambre galvanizado calibre 14, roscas, dobleces, fijación de tubería, pasos y ranuras donde se requiera, desperdicios y pasos.","m",59,null,null,0,"%"]
["Nombre de la empresa",null,null,null,"Representante legal"]
[]
[41,"E18-CAJAFS01","Suministro y colocación a cualquier nivel y altura de CAJA REGISTRO serie FS de 1/2\" (13 mm) tipo \"FR\", \"FL\", \"FC\", \"FSC\", \"FSS\", \"FSCC\", o \"FSLA\" marca CROUSE-HINDS , incluye fijación de la pieza, ranuras donde se requiera, desperdicios.","pza",20,null,null,{"$f":"ROUND(E159*G159,2)","v":0},"%"]
[42,"E18-PLACAEXT1","Suministro y colocación a cualquier nivel y altura de PLACA para INTEMPERIE vertical moldeada en zinc para receptáculo, modelo LV4992 marca LEVITON , incluye fijación de la pieza y todo lo necesario para su fijación.","pza",40,null,null,0,"%"]
[43,"E18-2871PG","Suministro y colocación a cualquier nivel y altura de TUBO CONDUIT de P.V.C. tipo PESADO de 3/4\" (19 mm) de diámetro, incluye guía de alambre galvanizado calibre 14, pegamento, fijación de tubería y ranuras donde se requiera y desperdicios.","m",12,null,null,0,"%"]
[44,"E18-0295","Suministro y colocación a cualquier nivel o altura de CONTACTO o toma de corriente polarizada y aterrizada 2P+T marca Bticino código QZ5115DS línea QUINZIÑO MX, incluye pruebas y todo lo necesario para su fijación.","pza",40,null,null,0,"%"]
[45,"E18-559A","Suministro e instalación a cualquier nivel y altura de INTERRUPTOR TERMOMAGNÉTICO tipo Qo de 1 polo por 10 ampers marca SQUARE-D.","pza",8,null,null,0,"%"]
[46,"E18-559B","Suministro e instalación a cualquier nivel y altura de INTERRUPTOR TERMOMAGNÉTICO tipo Qo de 1 polo por 30 ampers marca SQUARE-D.","pza",3,null,null,0,"%"]
[47,"E18-560","Suministro e instalación a cualquier nivel y altura de INTERRUPTOR TERMOMAGNÉTICO tipo Qo de 1 polo por 20 ampers marca SQUARE-D.","pza",1,null,null,0,"%"]
[48,"E18-TABNQ01","Suministro y colocación a cualquier nivel de TABLERO TRIFÁSICO de ALUMBRADO y DISTRIBUCIÓN línea NQ 20\" marca SQUARE-D, catálogo NQ184AB100(F) de EMPOTRAR, interruptor principal 100 ampers, 3 fases- 4 hilos, 240-120 VCA, 18 circuitos 10,000 ACI, incluye todo lo necesario para su fijación.","pza",1,null,null,0,"%"]
[null,null,null,"SUBTOTAL DE INSTALACIÓN ELÉCTRICA E ILUMINACIÓN:",null,null,null,{"$f":"SUM(H149:H166)","v":0}]
[]
["PAR0006","PAR0006","INSTALACIÓN DE VOZ Y DATOS"]
[49,"E05-TUPADELEC01","Suministro y tendido de TUBO de POLIETILENO DE ALTA DENSIDAD (PAD) de 3\" (75 mm) de diámetro LISO RD-17 para instalaciones eléctricas, incluye cortes, desperdicio y acarreo del material a cualquier distancia.","m",38.549999999999997,null,null,{"$f":"ROUND(E170*G170,2)","v":0},"%"]
[50,"E10-201B","Suministro y colocación de REGISTRO ELÉCTRICO DE BAJA TENSIÓN EN BANQUETA TIPO 1 (CFE RBTB-1) de concreto prefabricado de 0.50 x 0.80 m y 0.65 m de profundidad, incluye nivelación y plomeo y cama de grava volcánica para drenaje de aguas.","pza",2,null,null,0,"%"]
[51,"E05-251","Suministro y colocación de CAMA de ARENA NEGRA VOLCÁNICA de 5 a 10 cm de espesor promedio, incluye acomodo, extendido y acarreos a cualquier distancia.","m3",1,null,null,0,"%"]
[52,"E18-230A","Suministro y tendido a cualquier nivel y altura de TUBO CONDUIT GALVANIZADO PARED GRUESA de 19 mm (3/4\"), incluye guía de alambre galvanizado calibre 14, roscas, dobleces, fijación de tubería, pasos y ranuras donde se requiera, desperdicios y pasos.","m",29.28,null,null,0,"%"]
[53,"E18-CAJAFS02","Suministro y colocación a cualquier nivel y altura de CAJA REGISTRO serie FS de 3/4\" (19 mm) tipo \"FR\", \"FL\", \"FC\", \"FSC\", \"FSS\", \"FSCC\", o \"FSLA\" marca CROUSE-HINDS , incluye fijación de la pieza, ranuras donde se requiera, desperdicios y todo lo necesario para su fijación.","pza",4,null,null,0,"%"]
[null,null,null,"SUBTOTAL DE INSTALACIÓN DE VOZ Y DATOS:",null,null,null,{"$f":"SUM(H170:H174)","v":0}]
[]
[]
[]
[]
[]
[]
[]
["Nombre de la empresa",null,null,null,"Representante legal"]
[]
["PAR0007","PAR0007","MOBILIARIO URBANO"]
[54,"E21-BANCA05","Suministro y colocación a cualquier nivel de BANCA DECORATIVA de 1.92 m de largo por 0.42 m de ancho y 0.45 m de alto, elaborada a base de perfiles metálicos estructurales norma ASTM y cubierta de lámina negra con perforaciones escalonadas de 1/8\" calibre 14, incluye soldadura, cortes, ajustes, descalibre, desperdicios, fijación a piso de concreto con taquete expansivo galvanizado de 3/8\", barrenos en piso de concreto,  nivelación, plomeo, rolado de lámina en aristas y una mano de primer alquidalico aplicado en taller.","pza",8,null,null,{"$f":"ROUND(E186*G186,2)","v":0},"%"]
[55,"E500-CICLO02","Suministro y colocación de CICLOPUERTO de 0.65 m de largo por 0.676 de ancho y 0.775 m de alto compuesto por TRES módulos elaborados a base de tubo de fierro negro de 2 1/2\" cédula 40 y base de desplante con perfil PTR de 4 x 2\" calibre 11, incluye trazo, nivelación y plomeo de la pieza, fijación a piso con  taquete expansivo de 3/8\" x 3 3/4\", barrenos en piso, soldadura, ángulos de base, descalibre, rolado de perfiles, limpieza y sellado del sustrato de la pieza bajo procedimiento para acabado de pintura electrostática en polvo y acabado con pintura electrostática en polvo color según muestra aprobada.","pza",6,null,null,0,"%"]
[56,"E500-BASU01","Suministro y colocación de BASURERO PREFABRICADO de 60 x 60 x 90 cm  modelo BKT-BA-007/ME marca BKT elaborado a base de acero al carbón galvanizado en frío acabado con pintura de poliéster, incluye nivelación, plomeo y kit de instalación.","pza",4,null,null,0,"%"]
[57,"E500-MAP01","Suministro y colocación de MAMPARA PARA SEÑALIZACIÓN PREFABRICADA de 90 x 40 x 250 cm  modelo BKT-SE-001 marca BKT elaborada a base de acero al carbón galvanizado en frío acabado con pintura de poliéster, incluye nivelación, plomeo y kit de instalación.","pza",2,null,null,0,"%"]
[null,null,null,"SUBTOTAL DE MOBILIARIO URBANO:",null,null,null,{"$f":"SUM(H186:H189)","v":0}]
[]
["PAR0008","PAR0008","JARDINERÍA"]
[58,"E26-002","Suministro y colocación de TIERRA POLVILLA para jardines, incluye acarreos a cualquier distancia, tendido y preparado para recibir pasto.","m3",84.77,null,null,{"$f":"ROUND(E193*G193,2)","v":0},"%"]
[59,"E26-0025","Suministro y colocación de PASTO en ROLLO  tipo WASHINGTON sobre superficies planas, incluye acarreos a cualquier distancia.","m2",847.66,null,null,0,"%"]
[60,"E26-ARBOL01","Suministro y colocación de árbol  LIQUIDÁMBAR (Liquidambar styraciflua) de 3.00 a 4.00 m de altura, incluye tutores de madera de 3a, tierra para jardín, riego y mantenimiento por dos semanas.","pza",10,null,null,0,"%"]
[null,null,null,"SUBTOTAL DE JARDINERÍA:",null,null,null,{"$f":"SUM(H193:H195)","v":0}]
[]
["PAR0009","PAR0009","LIMPIEZAS"]
[61,"E50-003","LIMPIEZA a detalle de PISOS de CEMENTO y CERÁMICO con cepillo, agua, ácido clorhídrico y/o jabón a cualquier nivel.","m2",1258.9000000000001,null,null,{"$f":"ROUND(E199*G199,2)","v":0},"%"]
[null,null,null,"SUBTOTAL DE LIMPIEZAS:",null,null,null,{"$f":"SUM(H199)","v":0}]
[]
["FRENTE 02",null,"ASTA BANDERA"]
["PAR0010",null,"PRELIMINARES"]
[62,"E05-004","TRAZO y NIVELACIÓN de OBRAS EXTERIORES, considerando: plazas, andadores, arriates y jardinería incluye equipo de topografía y materiales para señalamiento.","m2",3.29,null,null,{"$f":"ROUND(E204*G204,2)","v":0},"%"]
[null,null,null,"SUBTOTAL DE PRELIMINARES:",null,null,null,{"$f":"SUM(H204)","v":0}]
[]
[]
[]
[]
[]
["Nombre de la empresa",null,null,null,"Representante legal"]
[]
["PAR0011",null,"CIMENTACIÓN"]
[63,"E06-002","EXCAVACIÓN A MANO en terreno tipo \"B\" en cepas de 0.00 a 2.00 m de profundidad,  incluye afine de taludes y traspaleo. (Medido compacto)","m3",8.1,null,null,{"$f":"ROUND(E214*G214,2)","v":0},"%"]
[64,"E05-0260","COMPACTACIÓN de TERRENO NATURAL al 90% de su PVSM, utilizando compactador de placa vibratoria (bailarina).","m2",3.24,null,null,0,"%"]
[65,"E05-02505A","RELLENO y COMPACTADO con pisón de MANO y agua en  capas de 20 cm utilizando MATERIAL PRODUCTO de EXCAVACIÓN, incluye traspaleo, extendido y acarreo a cualquier distancia.(Medido compacto)","m3",8.1,null,null,0,"%"]
[66,"E05-041","PLANTILLA de concreto simple f'c= 100 kg/cm2 de 6 cm de espesor, incluye cimbra común en fronteras y fabricación, vaciado, acarreo y picado de concreto.","m2",3.24,null,null,0,"%"]
[67,"E02-001","Suministro y colocación de ACERO de REFUERZO del No. 2 (1/4\") de diámetro fy= 2,530 kg/cm2 en CIMENTACIÓN, incluye  habilitado, armado, ganchos, dobleces,  traslapes,  silletas, desperdicio, alambre recocido, fletes y acarreo.","kg",3.91,null,null,0,"%"]
[68,"E02-003","Suministro y colocación de  ACERO de REFUERZO del No. 3 (3/8\") de diámetro fy= 4,200 kg/cm2 en CIMENTACIÓN, incluye habilitado, armado, ganchos, dobleces, traslapes, silletas, desperdicio, alambre recocido, fletes y acarreo.","kg",33.97,null,null,0,"%"]
[69,"E02-005","Suministro y colocación de  ACERO de REFUERZO del No. 5 (5/8\") de diámetro fy= 4,200 kg/cm2 en CIMENTACIÓN, incluye  habilitado, armado, ganchos, dobleces,  traslapes,  silletas, desperdicio, alambre recocido, fletes y acarreo.","kg",104.28,null,null,0,"%"]
[70,"E02-006","Suministro y colocación de  ACERO de REFUERZO del No. 6 (3/4\") de diámetro fy= 4,200 kg/cm2 en CIMENTACIÓN, incluye  habilitado, armado, ganchos, dobleces,  traslapes,  silletas, desperdicio, alambre recocido, fletes y acarreo.","kg",22.5,null,null,0,"%"]
[71,"E03-041","CONCRETO HECHO EN OBRA f'c= 250 kg/cm2 RESISTENCIA NORMAL, tamaño máximo del agregado 19 mm (3/4\"), revenimiento de 12 a 14 cm en CIMENTACIÓN a cualquier altura, incluye materiales, mano de obra, elaboración, acarreo, vaciado y vibrado de concreto, membrana de curado emulsionada, emulsión acuosa de copolimeros como adhesivo en juntas frías entre concreto viejo y nuevo, equipo, herramienta necesaria y desperdicio.","m3",1.41,null,null,0,"%"]
[72,"E01-CIMZAP01","CIMBRA y descimbra en ZAPATAS y LOSAS de CIMENTACIÓN, acabado común con duela de madera de pino de 2a. y obra  falsa de madera de pino de 3a., medida por superficie de contacto, incluye materiales, mano de obra, habilitado, nivelado, desmoldante (no aceite quemado), desperdicios y cambio a la siguiente posición.","m2",1.28,null,null,0,"%"]
[73,"E01-021","CIMBRA y descimbra en DADOS y CONTRATRABES de CIMENTACIÓN acabado común con duela de madera de pino de 2a. y obra falsa de madera de pino de 3a., medida por superficie de contacto, incluye materiales, mano de obra, habilitado, nivelado, desmoldante (no aceite quemado), desperdicios y cambio a la siguiente posición.","m2",5.28,null,null,0,"%"]
[null,null,null,"SUBTOTAL DE CIMENTACIÓN:",null,null,null,{"$f":"SUM(H214:H224)","v":0}]
[]
[]
[]
[]
[]
[]
[]
[]
[]
[]
[]
[]
[]
[]
[]
["Nombre de la empresa",null,null,null,"Representante legal"]
[]
["PAR0012",null,"ESTRUCTURA METÁLICA"]
[74,"E20-ESTMET01","Suministro, habilitado y montaje de ESTRUCTURA METÁLICA a cualquier nivel y altura para poste de ASTA BANDERA elaborada a base de perfiles de acero estructural de NORMA ASTM, incluye trazo, nivelación y plomeo de estructura, cortes, ajustes, absolutamente todos los elementos necesarios para conexión, placas de conexión, ángulos de apoyo, anclas, placas base, cartabones, soldadura, descalibre, desperdicios, maniobras con grúa, una mano de primario anticorrosivo aplicado en taller, esfera repujada de 20 cm de diámetro elaborada a base de acero inoxidable, sistema de izaje superior a base de poleas de aluminio de 4\" con platina H.R. de 1\" x 1/2\" y manivela reforzada de acero, 3 ganchos giratorios de bronce cromado,  cubierta metálica anti vandálica con cerradura,  CABLE DE ACERO GALVANIZADO DE 3/8\" composición 6 x 7 alma de polipropileno y todo lo necesario para su fijación.","kg",2018.05,null,null,{"$f":"ROUND(E244*G244,2)","v":0},"%"]
[75,"E20-5302","Suministro y colocación de ESTABILIZADOR de VOLUMEN no metálico tipo GROUT, incluye preparación de la mezcla tipo medio, fabricación, acarreo y vaciado de la mezcla y curado con membrana.","m3",0.02,null,null,0,"%"]
[null,null,null,"SUBTOTAL DE ESTRUCTURA METÁLICA:",null,null,null,{"$f":"SUM(H244:H245)","v":0}]
[]
["PAR0013",null,"ACABADOS Y RECUBRIMIENTOS"]
[76,"E22-043","Suministro y aplicación a cualquier altura y nivel de PINTURA de ESMALTE ALQUIDÁLICO ANTICORROSIVO a DOS MANOS SOBRE HERRERÍA, trabajo terminado con PISTOLA Y COMPRESOR a una cara,  incluye solvente adelgazador, limpieza, preparación de la superficie y el equipo necesario.","m2",30.16,null,null,{"$f":"ROUND(E249*G249,2)","v":0},"%"]
[null,null,null,"SUBTOTAL DE ACABADOS Y RECUBRIMIENTOS:",null,null,null,{"$f":"SUM(H249)","v":0}]
[]
["PAR0014",null,"INSTALACIÓN ELÉCTRICA E ILUMINACIÓN"]
[77,"E05-TUBE02","Suministro y tendido de TUBO de RESINA de POLIETILENO de ALTA DENSIDAD (PEAD) de 1 1/2\" (38 mm) de diámetro LISO para instalaciones eléctricas RD-17, incluye cortes, desperdicio y acarreo del material a cualquier distancia.","m",15.93,null,null,{"$f":"ROUND(E253*G253,2)","v":0},"%"]
[78,"E18-0315","Suministro y tendido a cualquier nivel y altura de CABLE DE COBRE SUAVE THW-LS calibre 12 temperatura máxima de operación 90°C y tensión máxima de 600 volts, incluye cocas y desperdicios.","m",31.86,null,null,0,"%"]
[79,"E18-2241","Suministro y tendido a cualquier nivel y altura de CABLE de COBRE DESNUDO calibre 12, incluye cocas y desperdicios.","m",15.93,null,null,0,"%"]
[80,"E18-040G","Suministro y colocación a cualquier nivel y altura de FOTOCONTROL  ELECTRÓNICO (FOTOCELDA) 105-305 volts, 1000 watts modelo TR5237 marca TORK con base instalado en azotea, incluye pruebas y todo lo necesario para su fijación.","pza",1,null,null,0,"%"]
[81,"E18-LUMPISO1","Suministro y colocación de LUMINARIA tipo EMPOTRABLE en PISO de 50 watts 127-227 volts de aditivos metálicos, modelo PCJC-70-AM marca LJ ILUMINACIÓN, incluye balastro, lámpara, conector de aislamiento y todo lo necesario para su fijación.","pza",6,null,null,0,"%"]
[null,null,null,"SUBTOTAL DE INSTALACIÓN ELÉCTRICA E ILUMINACIÓN:",null,null,null,{"$f":"SUM(H253:H257)","v":0}]
[]
[]
[]
[]
[]
[]
[]
[]
[]
[]
["Nombre de la empresa",null,null,null,"Representante legal"]
[]
["FRENTE 03",null,"CUBIERTA"]
["PAR0015",null,"PRELIMINARES"]
[82,"E05-004","TRAZO y NIVELACIÓN de OBRAS EXTERIORES, considerando: plazas, andadores, arriates y jardinería incluye equipo de topografía y materiales para señalamiento.","m2",244.01,null,null,{"$f":"ROUND(E273*G273,2)","v":0},"%"]
[null,null,null,"SUBTOTAL DE PRELIMINARES:",null,null,null,{"$f":"SUM(H273)","v":0}]
[]
["PAR0016",null,"ESTRUCTURA METÁLICA"]
[83,"E20-530","Suministro, habilitado y montaje de ESTRUCTURA METÁLICA a cualquier nivel y altura elaborada a base de perfiles de acero estructural de NORMA ASTM, incluye planos de taller,  trazo, nivelación y plomeo de estructura, cortes, ajustes, tuercas y tornillos hexagonales de alta resistencia grado estructural, roscas, barrenos, absolutamente todos los elementos necesarios para conexión, placas de conexión, ángulos de apoyo, anclas, placas base, soldadura, descalibre, desperdicios, maniobras con grúa y una mano de primario anticorrosivo aplicado en taller.","kg",4291.9799999999996,null,null,{"$f":"ROUND(E277*G277,2)","v":0},"%"]
[84,"E20-5302","Suministro y colocación de ESTABILIZADOR de VOLUMEN no metálico tipo GROUT, incluye preparación de la mezcla tipo medio, fabricación, acarreo y vaciado de la mezcla y curado con membrana.","m3",0.34,null,null,0,"%"]
[null,null,null,"SUBTOTAL DE ESTRUCTURA METÁLICA:",null,null,null,{"$f":"SUM(H277:H278)","v":0}]
[]
["PAR0017",null,"ACABADOS Y RECUBRIMIENTOS"]
[85,"E22-043","Suministro y aplicación a cualquier altura y nivel de PINTURA de ESMALTE ALQUIDÁLICO ANTICORROSIVO a DOS MANOS SOBRE HERRERÍA, trabajo terminado con PISTOLA Y COMPRESOR a una cara,  incluye solvente adelgazador, limpieza, preparación de la superficie y el equipo necesario.","m2",408.76,null,null,{"$f":"ROUND(E282*G282,2)","v":0},"%"]
[null,null,null,"SUBTOTAL DE ACABADOS Y RECUBRIMIENTOS:",null,null,null,{"$f":"SUM(H282)","v":0}]
[]
["PAR0018",null,"INSTALACIÓN ELÉCTRICA E ILUMINACIÓN"]
[86,"E19-3221A","Suministro y colocación a cualquier nivel y altura de TUBO CONDUIT de P.V.C. tipo PESADO de 1/2\" (13 mm) de diámetro, incluye guía de alambre galvanizado calibre 14, pegamento, fijación de tubería y ranuras donde se requiera y desperdicios.","ml",279.18,null,null,{"$f":"ROUND(E286*G286,2)","v":0},"%"]
[87,"E18-0319A","Suministro y colocación a cualquier nivel y altura de TUBO CONDUIT de P.V.C. tipo PESADO de 1 1/2\" (38 mm), de diámetro, incluye guía de alambre galvanizado calibre 14, pegamento, fijación de tubería y ranuras donde se requiera y desperdicios.","ml",47,null,null,0,"%"]
[88,"E18-COVAL02","Suministro y colocación a cualquier nivel y altura de CONDULET OVALADO serie 7 de 1/2\" (13 mm) tipo \"C\", \"LB\", \"LL\", \"LR\", \"TB\" o \"X\" marca CROUSE-HINDS , incluye tapa, empaque, fijación de la pieza, ranuras donde se requiera, desperdicios y todo lo necesario para su fijación.","pza",42,null,null,0,"%"]
[89,"E18-COVAL03","Suministro y colocación a cualquier nivel y altura de CONDULET OVALADO serie 7 de 11/2\" (38 mm) tipo \"C\", \"LB\", \"LL\", \"LR\", \"TB\" o \"X\" marca CROUSE-HINDS , incluye tapa, empaque, fijación de la pieza, ranuras donde se requiera, desperdicios y todo lo necesario para su fijación.","pza",6,null,null,0,"%"]
[90,"E18-REFLED01","Suministro y colocación a cualquier altura y nivel  de REFLECTOR LED 50 watts modelo REFLED-50W/65 marca IPSA, incluye  balastro driver, lámpara, 65000 K y todo lo necesario para su fijación.","pza",18,null,null,0,"%"]
[91,"E18-0315","Suministro y tendido a cualquier nivel y altura de CABLE DE COBRE SUAVE THW-LS calibre 12 temperatura máxima de operación 90°C y tensión máxima de 600 volts, incluye cocas y desperdicios.","m",105.96,null,null,0,"%"]
["Nombre de la empresa",null,null,null,"Representante legal"]
[]
[92,"E18-2241","Suministro y tendido a cualquier nivel y altura de CABLE de COBRE DESNUDO calibre 12, incluye cocas y desperdicios.","m",52.98,null,null,{"$f":"ROUND(E294*G294,2)","v":0},"%"]
[null,null,null,"SUBTOTAL DE INSTALACIÓN ELÉCTRICA E ILUMINACIÓN:",null,null,null,{"$f":"SUM(H286:H294)","v":0}]
[]
["PAR0019",null,"ALUMINIO, VIDRIOS, DOMOS Y POLICARBONATO"]
[93,"E21-1212B","Suministro y colocación a cualquier nivel y altura de PANEL de ALUMINIO COMPUESTO de 4 mm de espesor, acabado BRUSHER CEPILLADO, incluye trazo, cortes, desperdicios, ajustes, sellado con silicón grado arquitectónico, cinta de espuma de poliuretano con adhesivo en las dos caras de 1/4\" x 3/8\"  y todo lo necesario para su fijación.","m2",204.38,null,null,{"$f":"ROUND(E298*G298,2)","v":0},"%"]
[null,null,null,"SUBTOTAL DE ALUMINIO, VIDRIOS, DOMOS Y POLICARBONATO:",null,null,null,{"$f":"SUM(H298)","v":0}]
[]
["FRENTE 04",null,"ESCULTURA CENTENARIO NICOLAITA"]
["PAR0020",null,"PRELIMINARES"]
[94,"E05-004","TRAZO y NIVELACIÓN de OBRAS EXTERIORES, considerando: plazas, andadores, arriates y jardinería incluye equipo de topografía y materiales para señalamiento.","m2",7.57,null,null,{"$f":"ROUND(E303*G303,2)","v":0},"%"]
[null,null,null,"SUBTOTAL DE PRELIMINARES:",null,null,null,{"$f":"SUM(H303)","v":0}]
[]
["PAR0021",null,"CIMENTACIÓN"]
[95,"E06-002","EXCAVACIÓN A MANO en terreno tipo \"B\" en cepas de 0.00 a 2.00 m de profundidad,  incluye afine de taludes y traspaleo. (Medido compacto)","m3",9.6300000000000008,null,null,{"$f":"ROUND(E307*G307,2)","v":0},"%"]
[96,"E05-0121","ACARREO de material producto de EXCAVACIÓN o ESCOMBRO fuera de la obra en CAMIÓN, incluye carga con MÁQUINA y descarga en banco de desperdicio a cualquier distancia. (Medido compacto)","m3",2.13,null,null,0,"%"]
[97,"E05-0260","COMPACTACIÓN de TERRENO NATURAL al 90% de su PVSM, utilizando compactador de placa vibratoria (bailarina).","m2",11.34,null,null,0,"%"]
[98,"E05-02505A","RELLENO y COMPACTADO con pisón de MANO y agua en  capas de 20 cm utilizando MATERIAL PRODUCTO de EXCAVACIÓN, incluye traspaleo, extendido y acarreo a cualquier distancia.(Medido compacto)","m3",7.5,null,null,0,"%"]
[99,"E05-041","PLANTILLA de concreto simple f'c= 100 kg/cm2 de 6 cm de espesor, incluye cimbra común en fronteras y fabricación, vaciado, acarreo y picado de concreto.","m2",4.83,null,null,0,"%"]
[100,"E02-003","Suministro y colocación de  ACERO de REFUERZO del No. 3 (3/8\") de diámetro fy= 4,200 kg/cm2 en CIMENTACIÓN, incluye habilitado, armado, ganchos, dobleces, traslapes, silletas, desperdicio, alambre recocido, fletes y acarreo.","kg",34.159999999999997,null,null,0,"%"]
[101,"E02-006","Suministro y colocación de  ACERO de REFUERZO del No. 6 (3/4\") de diámetro fy= 4,200 kg/cm2 en CIMENTACIÓN, incluye  habilitado, armado, ganchos, dobleces,  traslapes,  silletas, desperdicio, alambre recocido, fletes y acarreo.","kg",43.53,null,null,0,"%"]
[102,"E01-CIMZAP01","CIMBRA y descimbra en ZAPATAS y LOSAS de CIMENTACIÓN, acabado común con duela de madera de pino de 2a. y obra  falsa de madera de pino de 3a., medida por superficie de contacto, incluye materiales, mano de obra, habilitado, nivelado, desmoldante (no aceite quemado), desperdicios y cambio a la siguiente posición.","m2",2.67,null,null,0,"%"]
[103,"E01-021","CIMBRA y descimbra en DADOS y CONTRATRABES de CIMENTACIÓN acabado común con duela de madera de pino de 2a. y obra falsa de madera de pino de 3a., medida por superficie de contacto, incluye materiales, mano de obra, habilitado, nivelado, desmoldante (no aceite quemado), desperdicios y cambio a la siguiente posición.","m2",4.04,null,null,0,"%"]
["Nombre de la empresa",null,null,null,"Representante legal"]
[]
[104,"E03-041","CONCRETO HECHO EN OBRA f'c= 250 kg/cm2 RESISTENCIA NORMAL, tamaño máximo del agregado 19 mm (3/4\"), revenimiento de 12 a 14 cm en CIMENTACIÓN a cualquier altura, incluye materiales, mano de obra, elaboración, acarreo, vaciado y vibrado de concreto, membrana de curado emulsionada, emulsión acuosa de copolimeros como adhesivo en juntas frías entre concreto viejo y nuevo, equipo, herramienta necesaria y desperdicio.","m3",1.65,null,null,{"$f":"ROUND(E318*G318,2)","v":0},"%"]
[105,"E20-5302","Suministro y colocación de ESTABILIZADOR de VOLUMEN no metálico tipo GROUT, incluye preparación de la mezcla tipo medio, fabricación, acarreo y vaciado de la mezcla y curado con membrana.","m3",0.03,null,null,0,"%"]
[null,null,null,"SUBTOTAL DE CIMENTACIÓN:",null,null,null,{"$f":"SUM(H307:H319)","v":0}]
["NOTAS GENERALES:"]
[]
["1.- LOS PRECIOS UNITARIOS DEBERÁN CONTEMPLAR LA ZONA ECONÓMICA EN ADQUISICIÓN DE MATERIALES, MANO DE OBRA; ASÍ MISMO, LAS CONDICIONES DE LOS LUGARES DE ACCESO PARA EL ABASTECIMIENTO DE LOS MISMOS."]
["2.- TODOS LOS CONCEPTOS INCLUIDOS EN EL PRESENTE CATALOGO SON, POR UNIDAD DE CONCEPTO DE TRABAJO TERMINADO (U.C.T.T.), POR LO QUE DEBEN DE INCLUIR: SUMINISTRO DE MATERIALES, MANO DE OBRA, COLOCACIONES, HERRAMIENTA, EQUIPO, CARGA, DESCARGA, ACARREOS Y TODO LO NECESARIO PARA LA EJECUCIÓN DEL CONCEPTO."]
["3.- TODOS LOS CONCEPTOS INCLUYEN LIMPIEZAS  PARCIALES DURANTE EL TRANSCURSO DE LA OBRA."]
["4.-TODOS LOS CONCEPTOS DE APLANADOS INCLUYEN LAS BOQUILLAS EN VENTANAS,  PUERTAS, CUALQUIER VANO QUE SE HAYA VERIFICADO EN LA VISITA DE INSPECCIÓN  FÍSICA DE LA OBRA."]
["5.-LAS INSTALACIONES ELÉCTRICAS E HIDRÁULICAS  INCLUIDAS  EN EL PRESENTE CATALOGO INCLUYEN: LAS PRUEBAS NECESARIAS Y PARA FINES DE PAGO  SE CONSIDERA A LÍNEA DE PROYECTO."]
["6.- EL CONTRATISTA DEBERÁ CONTRATAR AL LABORATORIO CERTIFICADO AUTORIZADO QUE CONSIDERE CONVENIENTE Y EMITIRÁ  LOS REPORTES DE CONTROL CORRESPONDIENTES."]
["7.- LOS MATERIALES Y LOS PROCEDIMIENTOS CONSTRUCTIVOS UTILIZADOS PARA LA REALIZACIÓN DE LOS CONCEPTOS  QUE INTEGRAN ESTA OBRA, SERÁN LOS INDICADOS EN LAS NORMAS  Y REGLAMENTO DE CONSTRUCCIÓN DEL GOBIERNO DEL DISTRITO FEDERAL."]
["8.- CUALQUIER SIMILAR A LOS PRODUCTOS O SERVICIOS AQUÍ SEÑALADOS DEBERÁN CUMPLIR  INDISCUTIBLEMENTE CON LA MISMA CALIDAD Y GARANTÍA DE ÉSTOS."]
["9.- LA UNIVERSIDAD MICHOACANA DE SAN NICOLÁS DE HIDALGO, SE RESERVA EL DERECHO DE VARIAR LAS CANTIDADES DE OBRAS POR EJECUTAR  Y LAS CANTIDADES DE OBRA QUE CONTIENE ESTE CATÁLOGO."]
["10.- EN LOS CONCEPTOS DE REHABILITACIÓN Y MANTENIMIENTO, CONSIDERAR EN EL PRECIO UNITARIO LIMPIEZAS Y ACARREOS DENTRO Y FUERA DE LA OBRA. "]
[]
[]
[]
[]
[]
[]
[]
[]
[]
[]
[]
[]
[]
[]
[]
[]
[]
[]
[]
[]
[]
[]
[]
[]
["Nombre de la empresa",null,null,null,"Representante legal"]